Department Family,Entity(T),Date,Expense Type(T),Expense Area(T),Supplier(T),Transaction No,Amount
DCMS,Tate Gallery,22/07/2014,Brickwork,Capital Projects,Swift Brickwork Contractors Ltd,10239220,"310,698.08 "
DCMS,Tate Gallery,22/07/2014,Superstructure Concrete,Capital Projects,Byrne Bros,10239214,"292,576.09 "
DCMS,Tate Gallery,16/07/2014,Minor New Works,Capital Projects,Working Environments Thames Valley Ltd,10238507,"279,722.20 "
DCMS,Tate Gallery,22/07/2014,Construction Manager,Capital Projects,Mace Ltd,10239204,"272,337.00 "
DCMS,Tate Gallery,22/07/2014,Perimeter Structure and Precast Cladding,Capital Projects,Loveld UK Ltd,10239216,"212,585.39 "
DCMS,Tate Gallery,22/07/2014,External Glazing,Capital Projects,Seele GmbH,10239217,"192,691.93 "
DCMS,Tate Gallery,11/07/2014,Minor New Works,Capital Projects,Working Environments Thames Valley Ltd,10238503,"182,935.25 "
DCMS,Tate Gallery,21/07/2014,Electrical Installation,Capital Projects,T.Clarke Plc,10239229,"173,908.71 "
DCMS,Tate Gallery,21/07/2014,Ventilation Installation,Capital Projects,Hotchkiss Ltd,10239228,"161,076.94 "
DCMS,Tate Gallery,01/07/2014,Enabling Works,Capital Projects,Mansell Construction Services Limited,10238326,"133,266.51 "
DCMS,Tate Gallery,21/07/2014,Lifts,Capital Projects,Otis Limited,10239232,"121,005.59 "
DCMS,Tate Gallery,24/07/2014,Electrical Installation,Capital Projects,Piggott & Whitfield Ltd,10239244,"107,387.73 "
DCMS,Tate Gallery,22/07/2014,Structural Steelwork,Capital Projects,Watson Steel Structures Ltd,10239215,"86,102.31 "
DCMS,Tate Gallery,01/07/2014,Enabling Works,Capital Projects,Mansell Construction Services Limited,10238325,"71,619.75 "
DCMS,Tate Gallery,22/07/2014,Architectural Metal Work,Capital Projects,Lee Warren Fabrication & Design Limited,10239223,"66,556.59 "
DCMS,Tate Gallery,22/07/2014,Logistics,Capital Projects,Elliot Thomas Ltd,10239211,"62,282.05 "
DCMS,Tate Gallery,22/07/2014,Temporary Accommodation,Capital Projects,Hewden Stuart Ltd,10239206,"59,576.65 "
DCMS,Tate Gallery,24/07/2014,Mechanical Installation,Capital Projects,Piggott & Whitfield Ltd,10239243,"58,758.72 "
DCMS,Tate Gallery,11/07/2014,Minor New Works,Capital Projects,Working Environments Thames Valley Ltd,10238504,"56,935.00 "
DCMS,Tate Gallery,22/07/2014,Reimbursables,Capital Projects,Mace Ltd,10239212,"55,685.27 "
DCMS,Tate Gallery,22/07/2014,Tower Cranes,Capital Projects,Select Plant Hire Company Ltd,10239208,"55,433.62 "
DCMS,Tate Gallery,08/07/2014,BMS & Controls,Capital Projects,Lloret Control System Limted,10238260,"50,631.98 "
DCMS,Tate Gallery,24/07/2014,BMS & Controls,Capital Projects,Lloret Control System Limted,10239333,"43,947.50 "
DCMS,Tate Gallery,21/07/2014,Mechanical Installation,Capital Projects,Mercury Engineering,10239227,"40,072.74 "
DCMS,Tate Gallery,21/07/2014,Fire Alarm,Capital Projects,Protec Fire Detection Plc,10239230,"38,524.62 "
DCMS,Tate Gallery,14/07/2014,Cost Consultant,Capital Projects,AECOM Ltd,10238072,"32,775.00 "
DCMS,Tate Gallery,24/07/2014,Cost Consultant,Capital Projects,AECOM Ltd,10239254,"32,775.00 "
DCMS,Tate Gallery,24/07/2014,Architect,Capital Projects,Herzog & De Meuron,10239151,"28,356.47 "
DCMS,Tate Gallery,22/07/2014,Minor New Works,Capital Projects,SPIE Matthew Hall Ltd,10238226,"26,585.63 "
DCMS,Tate Gallery,14/07/2014,Temporary Electrical/Plumbing,Capital Projects,Wingate Electrical Plc,10238616,"26,002.08 "
DCMS,Tate Gallery,24/07/2014,Electrical Installation,Capital Projects,Piggott & Whitfield Ltd,10239242,"25,351.92 "
DCMS,Tate Gallery,29/07/2014,Electricity,Estates (FM) Management,EDF Energy Limited - DIRECT DEBIT ONLY,10239000,"95,959.00 "
DCMS,Tate Gallery,02/07/2014,Facilities Management contract,Estates (FM) Management,SPIE Matthew Hall Ltd,10238243,"72,578.05 "
DCMS,Tate Gallery,29/07/2014,Electricity,Estates (FM) Management,EDF Energy Limited - DIRECT DEBIT ONLY,10239075,"69,338.95 "
DCMS,Tate Gallery,29/07/2014,Electricity,Estates (FM) Management,EDF Energy Limited - DIRECT DEBIT ONLY,10239003,"63,483.50 "
DCMS,Tate Gallery,02/07/2014,Facilities Management contract,Estates (FM) Management,SPIE Matthew Hall Ltd,10238243,"62,253.15 "
DCMS,Tate Gallery,29/07/2014,Electricity,Estates (FM) Management,EDF Energy Limited - DIRECT DEBIT ONLY,10239071,"61,568.88 "
DCMS,Tate Gallery,29/07/2014,Electricity,Estates (FM) Management,EDF Energy Limited - DIRECT DEBIT ONLY,10239071,"42,785.15 "
DCMS,Tate Gallery,01/07/2014,Inst - Striking & Installation,Exhibitions & Displays,M.C. Designers Ltd,10237943,"36,280.86 "
DCMS,Tate Gallery,01/07/2014,"Inst - Equipment, furniture & plinths",Exhibitions & Displays,M.C. Designers Ltd,10237941,"32,323.50 "
DCMS,Tate Gallery,21/07/2014,Photocopying costs,Information Systems,The Danwood Group Ltd,10238270,"34,725.14 "
DCMS,Tate Gallery,11/07/2014,Site security - Contracts,"Sites, Security and Services",Wilson James Ltd,10238709,"126,995.73 "
DCMS,Tate Gallery,11/07/2014,Site security - Contracts,"Sites, Security and Services",Wilson James Ltd,10238709,"112,586.17 "
DCMS,Tate Gallery,11/07/2014,Site security - Contracts,"Sites, Security and Services",Wilson James Ltd,10238709,"25,942.72 "






